[Event "SWE-ch Masters 2019"]
[Site "Eskilstuna"]
[Date "2019.07.12"]
[Round "7.3"]
[White "Wahlund, Max"]
[Black "Tiger-Norqvist, Axel"]
[Result "0-1"]
[ECO "E81"]
[WhiteElo "2100"]
[BlackElo "2222"]
[Annotator "NA"]
[PlyCount "66"]
[EventDate "2019.07.06"]
[EventType "swiss"]
[EventCountry "SWE"]
[SourceTitle "playchess.com"]
[Source "ChessBase"]
[SourceQuality "1"]
[TimeControl "40/5400+30:1800+30"]

1. d4 {[%emt 0:00:00]} Nf6 {[%emt 0:00:00]} 2. c4 {[%emt 0:00:00]} g6 {[%emt 0:00:00]} 3. Nc3 {[%emt 0:00:00]} Bg7 {[%emt 0:00:00]} 4. e4 {[%emt 0:00:00]} O-O {[%emt 0:00:00]} 5. Be3 {[%emt 0:00:00]} d6 {[%emt 0:00:00]} 6. f3 {[%emt 0:00:00]} c5 {[%emt 0:00:02]} 7. Nge2 {[%emt 0:00:00]} Nc6 {[%emt 0:00:15]} 8. d5 {[%emt 0:00:00]} Ne5 {[%emt 0:00:07]} 9. Ng3 {[%emt 0:00:00]} h5 {[%emt 0:00:23]} 10. Be2 {[%emt 0:00:00]} h4 {[%emt 0:00:22]} 11. Nf1 {[%emt 0:00:00]} e6 {[%emt 0:00:16]} 12. f4 {[%emt 0:00:00]} Nxc4 {[%emt 0:07:43]} 13. Bxc4 {[%emt 0:00:37]} b5 {[%emt 0:00:09]} 14. Bxb5 {[%emt 0:02:22]} exd5 {[%emt 0:00:33]} 15. exd5 {[%emt 0:03:34]} h3 {[%emt 0:00:58]} 16. Qd2 {[%emt 0:04:18]} Rb8 {[%emt 0:00:25]} 17. a4 {[%emt 0:11:09]} a6 {[%emt 0:01:04]} 18. Bc6 {[%emt 0:00:28]} Ne4 {[%emt 0:02:05]} 19. Nxe4 {[%emt 0:04:01]} Rxb2 {[%emt 0:00:45]} 20. Qd3 {[%emt 0:06:09]} hxg2 {[%emt 0:00:44]} 21. Rg1 {[%emt 0:07:58]} gxf1=Q+ {[%emt 0:00:21]} 22. Qxf1 {[%emt 0:00:47]} Bf5 {[%emt 0:02:15]} 23. Nd2 {[%emt 0:03:45]} c4 {[%emt 0:02:56]} 24. Rc1 {[%emt 0:04:05]} c3 {[%emt 0:00:18]} 25. Nc4 {[%emt 0:03:07]} Qh4+ {[%emt 0:00:36]} 26. Rg3 {[%emt 0:08:26]} Rxh2 {[%emt 0:00:35]} 27. Qf3 {[%emt 0:02:10]} Bd3 {[%emt 0:04:02]} 28. Bg1 {[%emt 0:09:23]} Re2+ {[%emt 0:04:15]} 29. Kd1 {[%emt 0:00:02]} Bxc4 {[%emt 0:00:13]} 30. Rxc3 {[%emt 0:00:30]} Bxc3 {[%emt 0:00:45]} 31. Qxc3 {[%emt 0:00:01]} Qxf4 {[%emt 0:00:12]} 32. Rf3 {[%emt 0:00:41]} Qe4 {[%emt 0:00:19]} 33. Rh3 {[%emt 0:00:50]} Qb1+ {[%emt 0:00:06]} 0-1

[Event "SWE-ch Masters 2019"]
[Site "Eskilstuna"]
[Date "2019.07.12"]
[Round "7.4"]
[White "Olsson, Svante"]
[Black "Engstrom, Kaj"]
[Result "0-1"]
[ECO "A29"]
[WhiteElo "2155"]
[BlackElo "2234"]
[Annotator "NA"]
[PlyCount "74"]
[EventDate "2019.07.06"]
[EventType "swiss"]
[EventCountry "SWE"]
[SourceTitle "playchess.com"]
[Source "ChessBase"]
[SourceQuality "1"]
[TimeControl "40/5400+30:1800+30"]

1. c4 {[%emt 0:00:00]} e5 {[%emt 0:00:00]} 2. Nc3 {[%emt 0:00:00]} Nf6 {[%emt 0:00:00]} 3. Nf3 {[%emt 0:00:00]} Nc6 {[%emt 0:02:19]} 4. g3 {[%emt 0:00:04]} h6 {[%emt 0:05:40]} 5. Bg2 {[%emt 0:00:38]} Bc5 {[%emt 0:04:44]} 6. O-O {[%emt 0:00:30]} d6 {[%emt 0:00:32]} 7. Ne1 {[%emt 0:05:07]} a5 {[%emt 0:07:43]} 8. Nc2 {[%emt 0:02:58]} O-O {[%emt 0:01:42]} 9. a3 {[%emt 0:00:46]} Bf5 {[%emt 0:01:52]} 10. Ne3 {[%emt 0:01:17]} Bd7 {[%emt 0:02:12]} 11. Rb1 {[%emt 0:01:36]} Qc8 {[%emt 0:04:00]} 12. Ned5 {[%emt 0:00:15]} Nxd5 {[%emt 0:02:11]} 13. Nxd5 {[%emt 0:00:03]} Re8 {[%emt 0:01:41]} 14. b4 {[%emt 0:00:41]} axb4 {[%emt 0:00:07]} 15. axb4 {[%emt 0:00:10]} Ba7 {[%emt 0:00:15]} 16. b5 {[%emt 0:00:50]} Ne7 {[%emt 0:06:50]} 17. b6 {[%emt 0:04:50]} Bxb6 {[%emt 0:19:43]} 18. Nxb6 {[%emt 0:00:15]} cxb6 {[%emt 0:00:06]} 19. Rxb6 {[%emt 0:00:40]} Bc6 {[%emt 0:01:23]} 20. Qb3 {[%emt 0:00:39]} Qg4 {[%emt 0:01:03]} 21. Bf3 {[%emt 0:17:04]} Qh3 {[%emt 0:08:51]} 22. Ba3 {[%emt 0:00:48]} Nf5 {[%emt 0:01:08]} 23. Bb2 {[%emt 0:02:21]} Re6 {[%emt 0:07:00]} 24. Rxc6 {[%emt 0:03:49]} bxc6 {[%emt 0:00:49]} 25. Bxc6 {[%emt 0:00:08]} Rc8 {[%emt 0:09:31]} 26. Bg2 {[%emt 0:04:26]} Qg4 {[%emt 0:00:22]} 27. Bd5 {[%emt 0:03:34]} Rg6 {[%emt 0:01:53]} 28. Qb7 {[%emt 0:06:58]} Rf8 {[%emt 0:00:08]} 29. e3 {[%emt 0:02:04]} h5 {[%emt 0:00:33]} 30. Bf3 {[%emt 0:03:24]} Qg5 {[%emt 0:00:06]} 31. d4 {[%emt 0:02:33]} h4 {[%emt 0:01:46]} 32. Qe4 {[%emt 0:04:34]} hxg3 {[%emt 0:01:41]} 33. fxg3 {[%emt 0:00:25]} Qxe3+ {[%emt 0:01:03]} 34. Rf2 {[%emt 0:03:10]} Rb8 {[%emt 0:01:49]} 35. Qxe3 {[%emt 0:24:20]} Nxe3 {[%emt 0:00:05]} 36. c5 {[%emt 0:03:03]} dxc5 {[%emt 0:03:00]} 37. dxc5 {[%emt 0:00:04]} Re6 {[%emt 0:00:19]} 0-1

[Event "SWE-ch Masters 2019"]
[Site "Eskilstuna"]
[Date "2019.07.12"]
[Round "7.5"]
[White "Eriksson, Jorgen"]
[Black "Olsson, Simon"]
[Result "1/2-1/2"]
[ECO "E04"]
[WhiteElo "2211"]
[BlackElo "2176"]
[Annotator "NA"]
[PlyCount "82"]
[EventDate "2019.07.06"]
[EventType "swiss"]
[EventCountry "SWE"]
[SourceTitle "playchess.com"]
[Source "ChessBase"]
[SourceQuality "1"]
[TimeControl "40/5400+30:1800+30"]

1. d4 {[%emt 0:00:00]} Nf6 {[%emt 0:00:00]} 2. Nf3 {[%emt 0:00:00]} d5 {[%emt 0:00:00]} 3. c4 {[%emt 0:00:00]} e6 {[%emt 0:00:30]} 4. g3 {[%emt 0:00:14]} Nc6 {[%emt 0:00:35]} 5. Bg2 {[%emt 0:19:16]} dxc4 {[%emt 0:00:25]} 6. O-O {[%emt 0:01:03]} Rb8 {[%emt 0:00:33]} 7. Qc2 {[%emt 0:30:16]} b5 {[%emt 0:08:49]} 8. b3 {[%emt 0:00:51]} Nb4 {[%emt 0:05:49]} 9. Qd1 {[%emt 0:00:18]} cxb3 {[%emt 0:02:16]} 10. axb3 {[%emt 0:03:27]} a6 {[%emt 0:00:15]} 11. Ne5 {[%emt 0:03:13]} Bb7 {[%emt 0:08:53]} 12. Bxb7 {[%emt 0:04:11]} Rxb7 {[%emt 0:00:05]} 13. Ba3 {[%emt 0:05:08]} Rb6 {[%emt 0:20:46]} 14. Qc1 {[%emt 0:07:12]} Qc8 {[%emt 0:07:26]} 15. Rd1 {[%emt 0:07:44]} Bd6 {[%emt 0:03:33]} 16. Bxb4 {[%emt 0:00:24]} Bxb4 {[%emt 0:00:07]} 17. Nd3 {[%emt 0:01:03]} Be7 {[%emt 0:02:43]} 18. Nd2 {[%emt 0:01:26]} O-O {[%emt 0:02:49]} 19. b4 {[%emt 0:04:54]} Rd8 {[%emt 0:02:06]} 20. e3 {[%emt 0:00:55]} Nd7 {[%emt 0:06:06]} 21. Nb3 {[%emt 0:01:07]} Bf6 {[%emt 0:01:55]} 22. Ra2 {[%emt 0:01:06]} Rd6 {[%emt 0:01:28]} 23. Rc2 {[%emt 0:00:38]} c6 {[%emt 0:00:57]} 24. Na5 {[%emt 0:00:35]} Nb8 {[%emt 0:00:28]} 25. Nc5 {[%emt 0:00:38]} Rd5 {[%emt 0:08:48]} 26. Ne4 {[%emt 0:00:38]} Be7 {[%emt 0:00:37]} 27. Rxc6 {[%emt 0:02:51]} Nxc6 {[%emt 0:02:18]} 28. Nxc6 {[%emt 0:00:06]} Bf8 {[%emt 0:04:51]} 29. Nxd8 {[%emt 0:00:17]} Qxd8 {[%emt 0:00:17]} 30. Qb1 {[%emt 0:00:36]} a5 {[%emt 0:01:56]} 31. bxa5 {[%emt 0:01:57]} Qxa5 {[%emt 0:00:07]} 32. Qb3 {[%emt 0:01:23]} b4 {[%emt 0:00:44]} 33. Rb1 {[%emt 0:00:59]} e5 {[%emt 0:02:06]} 34. Nc5 {[%emt 0:00:17]} Qa8 {[%emt 0:01:01]} 35. Qxb4 {[%emt 0:00:28]} exd4 {[%emt 0:00:26]} 36. exd4 {[%emt 0:00:11]} Qd8 {[%emt 0:01:16]} 37. Qb8 {[%emt 0:01:11]} Rxd4 {[%emt 0:00:54]} 38. Qxd8 {[%emt 0:00:10]} Rxd8 {[%emt 0:00:02]} 39. Ne4 {[%emt 0:01:34]} f5 {[%emt 0:01:32]} 40. Ng5 {[%emt 0:00:23]} Be7 {[%emt 0:00:44]} 41. h4 {[%emt 0:30:41]} Bxg5 {[%emt 0:31:00]} 1/2-1/2

[Event "SWE-ch Masters 2019"]
[Site "Eskilstuna"]
[Date "2019.07.12"]
[Round "7.6"]
[White "Gromark, Per-Olof"]
[Black "Jogstad, Daniel"]
[Result "1-0"]
[ECO "E60"]
[WhiteElo "1909"]
[BlackElo "2154"]
[Annotator "NA"]
[PlyCount "129"]
[EventDate "2019.07.06"]
[EventType "swiss"]
[EventCountry "SWE"]
[SourceTitle "playchess.com"]
[Source "ChessBase"]
[SourceQuality "1"]
[TimeControl "40/5400+30:1800+30"]

1. Nf3 {[%emt 0:00:00]} d6 {[%emt 0:00:00]} 2. d4 {[%emt 0:00:00]} Nf6 {[%emt 0:00:01]} 3. g3 {[%emt 0:00:11]} g6 {[%emt 0:00:59]} 4. Bg2 {[%emt 0:00:47]} Bg7 5. b3 {[%emt 0:01:08]} O-O {[%emt 0:00:57]} 6. Bb2 {[%emt 0:00:04]} c6 {[%emt 0:16:16]} 7. c4 {[%emt 0:03:50]} Ne4 {[%emt 0:05:01]} 8. Nbd2 {[%emt 0:02:22]} Qa5 {[%emt 0:01:43]} 9. O-O {[%emt 0:01:29]} Nxd2 {[%emt 0:00:07]} 10. Nxd2 {[%emt 0:00:31]} Qh5 {[%emt 0:02:45]} 11. e4 {[%emt 0:01:16]} Qxd1 {[%emt 0:20:01]} 12. Raxd1 {[%emt 0:00:23]} c5 {[%emt 0:00:39]} 13. e5 {[%emt 0:01:55]} cxd4 {[%emt 0:02:20]} 14. exd6 {[%emt 0:00:51]} e5 {[%emt 0:03:27]} 15. f4 {[%emt 0:07:22]} f6 {[%emt 0:01:16]} 16. fxe5 {[%emt 0:10:42]} fxe5 {[%emt 0:00:06]} 17. Bd5+ {[%emt 0:00:05]} Kh8 {[%emt 0:00:08]} 18. Rxf8+ {[%emt 0:02:06]} Bxf8 {[%emt 0:00:05]} 19. c5 {[%emt 0:00:18]} Nc6 {[%emt 0:07:02]} 20. Nc4 {[%emt 0:04:23]} Bh3 {[%emt 0:14:20]} 21. Bxc6 {[%emt 0:05:24]} bxc6 {[%emt 0:00:04]} 22. Nxe5 {[%emt 0:00:17]} Bg7 {[%emt 0:00:17]} 23. Bxd4 {[%emt 0:05:03]} Rc8 {[%emt 0:00:07]} 24. Nc4 {[%emt 0:11:03]} Re8 {[%emt 0:02:37]} 25. Bxg7+ {[%emt 0:01:37]} Kxg7 {[%emt 0:00:04]} 26. d7 {[%emt 0:03:40]} Rd8 {[%emt 0:00:06]} 27. Ne5 {[%emt 0:00:25]} a6 {[%emt 0:00:26]} 28. Nxc6 {[%emt 0:00:22]} Rxd7 {[%emt 0:00:06]} 29. Rxd7+ {[%emt 0:00:08]} Bxd7 {[%emt 0:00:03]} 30. Nd4 {[%emt 0:01:54]} Kf6 {[%emt 0:00:52]} 31. Kf2 {[%emt 0:00:14]} Ke5 {[%emt 0:00:08]} 32. Ke3 {[%emt 0:00:12]} Kd5 {[%emt 0:02:45]} 33. b4 {[%emt 0:00:49]} g5 {[%emt 0:02:17]} 34. Kd3 {[%emt 0:02:24]} Bg4 {[%emt 0:00:21]} 35. a3 {[%emt 0:02:10]} h5 {[%emt 0:04:55]} 36. h4 {[%emt 0:01:42]} gxh4 {[%emt 0:00:20]} 37. gxh4 {[%emt 0:00:01]} Bd7 {[%emt 0:02:24]} 38. Kc3 {[%emt 0:09:56]} Bg4 {[%emt 0:01:16]} 39. Nc2 {[%emt 0:02:35]} Ke4 {[%emt 0:00:50]} 40. c6 {[%emt 0:02:24]} Ke5 {[%emt 0:01:32]} 41. a4 {[%emt 0:30:55]} Kd6 {[%emt 0:32:00]} 42. b5 {[%emt 0:00:12]} Kc5 {[%emt 0:05:54]} 43. Nd4 {[%emt 0:00:47]} axb5 {[%emt 0:04:05]} 44. axb5 {[%emt 0:00:08]} Bh3 {[%emt 0:00:47]} 45. Kd3 {[%emt 0:01:25]} Bg2 {[%emt 0:00:00]} 46. Ke3 {[%emt 0:00:00]} Bd5 {[%emt 0:00:00]} 47. c7 {[%emt 0:00:00]} Bb7 {[%emt 0:00:00]} 48. Nf5 {[%emt 0:00:00]} Kxb5 {[%emt 0:00:00]} 49. Ne7 {[%emt 0:00:00]} Kb6 {[%emt 0:00:00]} 50. c8=Q {[%emt 0:00:00]} Bxc8 {[%emt 0:00:06]} 51. Nxc8+ {[%emt 0:00:00]} Kc7 {[%emt 0:00:09]} 52. Ne7 {[%emt 0:00:00]} Kd6 {[%emt 0:00:11]} 53. Ng6 {[%emt 0:00:00]} Ke6 {[%emt 0:00:25]} 54. Kf4 {[%emt 0:00:00]} Kf6 {[%emt 0:00:05]} 55. Ne5 {[%emt 0:00:00]} Ke6 {[%emt 0:00:09]} 56. Nf3 {[%emt 0:00:00]} Kf6 {[%emt 0:00:09]} 57. Nd2 {[%emt 0:00:00]} Ke6 {[%emt 0:00:32]} 58. Kg5 {[%emt 0:00:00]} Ke5 {[%emt 0:00:09]} 59. Kxh5 {[%emt 0:00:00]} Kf5 {[%emt 0:00:12]} 60. Kh6 {[%emt 0:00:00]} Kf6 {[%emt 0:00:08]} 61. h5 {[%emt 0:00:00]} Kf7 {[%emt 0:00:06]} 62. Kh7 {[%emt 0:00:00]} Kf6 {[%emt 0:00:13]} 63. Ne4+ {[%emt 0:00:00]} Kf7 {[%emt 0:00:11]} 64. h6 {[%emt 0:00:00]} Kf8 {[%emt 0:00:06]} 65. Ng5 {[%emt 0:00:00]} 1-0

[Event "SWE-ch Masters 2019"]
[Site "Eskilstuna"]
[Date "2019.07.12"]
[Round "7.7"]
[White "Carlsson, Andreas"]
[Black "Lind, Jan-Olov"]
[Result "0-1"]
[ECO "B27"]
[WhiteElo "2019"]
[BlackElo "2155"]
[Annotator "NA"]
[PlyCount "84"]
[EventDate "2019.07.06"]
[EventType "swiss"]
[EventCountry "SWE"]
[SourceTitle "playchess.com"]
[Source "ChessBase"]
[SourceQuality "1"]
[TimeControl "40/5400+30:1800+30"]

1. e4 {[%emt 0:00:00]} c5 {[%emt 0:00:00]} 2. Nf3 {[%emt 0:00:00]} g6 {[%emt 0:00:00]} 3. d4 {[%emt 0:00:15]} cxd4 {[%emt 0:00:00]} 4. Qxd4 {[%emt 0:00:05]} Nf6 {[%emt 0:00:03]} 5. Nc3 {[%emt 0:00:03]} Nc6 {[%emt 0:00:34]} 6. Qa4 {[%emt 0:00:06]} d6 {[%emt 0:00:13]} 7. e5 {[%emt 0:00:05]} Ng4 {[%emt 0:02:23]} 8. Bb5 {[%emt 0:11:22]} Ngxe5 {[%emt 0:02:42]} 9. Nxe5 {[%emt 0:00:12]} dxe5 {[%emt 0:00:05]} 10. O-O {[%emt 0:01:28]} Bd7 {[%emt 0:04:36]} 11. Rd1 {[%emt 0:00:28]} a6 {[%emt 0:21:22]} 12. Bxc6 {[%emt 0:00:25]} bxc6 {[%emt 0:00:10]} 13. Bg5 {[%emt 0:01:13]} h6 {[%emt 0:04:58]} 14. Bh4 {[%emt 0:02:08]} Bg7 {[%emt 0:07:17]} 15. Ne4 {[%emt 0:03:53]} O-O {[%emt 0:12:35]} 16. Nc5 {[%emt 0:00:39]} Ra7 {[%emt 0:00:48]} 17. Rd2 {[%emt 0:05:27]} Qe8 {[%emt 0:02:05]} 18. Rad1 {[%emt 0:00:59]} Bf5 {[%emt 0:11:09]} 19. g4 {[%emt 0:01:46]} Bc8 {[%emt 0:01:35]} 20. h3 {[%emt 0:10:33]} g5 {[%emt 0:21:47]} 21. Bg3 {[%emt 0:01:33]} e6 {[%emt 0:00:23]} 22. f3 {[%emt 0:01:56]} Qe7 {[%emt 0:01:52]} 23. Bf2 {[%emt 0:00:51]} f5 {[%emt 0:00:45]} 24. Qxc6 {[%emt 0:02:24]} e4 {[%emt 0:01:03]} 25. fxe4 {[%emt 0:03:59]} fxg4 {[%emt 0:00:24]} 26. e5 {[%emt 0:04:50]} Bxe5 {[%emt 0:01:15]} 27. Qe4 {[%emt 0:00:12]} Bg7 {[%emt 0:00:57]} 28. Rd6 {[%emt 0:00:41]} e5 {[%emt 0:00:47]} 29. Qd5+ {[%emt 0:04:46]} Kh8 {[%emt 0:00:14]} 30. Qc6 {[%emt 0:03:07]} Kh7 {[%emt 0:00:58]} 31. Ne6 {[%emt 0:09:39]} Bxe6 {[%emt 0:00:20]} 32. Rxe6 {[%emt 0:00:12]} Qf7 {[%emt 0:00:11]} 33. Bxa7 {[%emt 0:00:51]} Qxa7+ {[%emt 0:00:11]} 34. Qb6 {[%emt 0:00:12]} Qf7 {[%emt 0:00:38]} 35. hxg4 {[%emt 0:01:28]} Qf3 {[%emt 0:00:40]} 36. Rd2 {[%emt 0:01:23]} Qxg4+ {[%emt 0:00:26]} 37. Rg2 {[%emt 0:00:28]} Qd1+ {[%emt 0:00:15]} 38. Kh2 {[%emt 0:00:12]} Qh5+ {[%emt 0:00:39]} 39. Kg1 {[%emt 0:00:27]} Qd1+ {[%emt 0:00:03]} 40. Kh2 {[%emt 0:00:07]} Rf1 {[%emt 0:00:11]} 41. Qe3 {[%emt 0:31:45]} Qh5+ {[%emt 0:04:59]} 42. Kg3 {[%emt 0:00:00]} Qh4# {[%emt 0:00:51]} 0-1

[Event "SWE-ch Masters 2019"]
[Site "Eskilstuna"]
[Date "2019.07.12"]
[Round "7.8"]
[White "Olsson, William"]
[Black "Emmoth, Alfons"]
[Result "0-1"]
[ECO "D00"]
[WhiteElo "2113"]
[BlackElo "2075"]
[Annotator "NA"]
[PlyCount "92"]
[EventDate "2019.07.06"]
[EventType "swiss"]
[EventCountry "SWE"]
[SourceTitle "playchess.com"]
[Source "ChessBase"]
[SourceQuality "1"]
[TimeControl "40/5400+30:1800+30"]

1. d4 {[%emt 0:00:00]} Nf6 {[%emt 0:00:00]} 2. Nf3 {[%emt 0:00:00]} g6 {[%emt 0:00:00]} 3. Nc3 {[%emt 0:00:00]} d5 {[%emt 0:00:00]} 4. Bf4 {[%emt 0:00:01]} Bg7 {[%emt 0:00:07]} 5. e3 {[%emt 0:00:15]} O-O {[%emt 0:00:17]} 6. Be2 {[%emt 0:00:03]} c6 {[%emt 0:00:13]} 7. Ne5 {[%emt 0:00:33]} Nfd7 {[%emt 0:00:12]} 8. h4 {[%emt 0:00:37]} f6 {[%emt 0:00:45]} 9. Ng4 {[%emt 0:00:50]} e5 {[%emt 0:07:25]} 10. Bh6 {[%emt 0:01:02]} e4 {[%emt 0:14:37]} 11. Bf4 {[%emt 0:06:36]} Nb6 {[%emt 0:07:26]} 12. Nh6+ {[%emt 0:04:45]} Kh8 {[%emt 0:02:15]} 13. g4 {[%emt 0:00:41]} g5 {[%emt 0:05:17]} 14. hxg5 {[%emt 0:00:11]} fxg5 {[%emt 0:00:15]} 15. Be5 {[%emt 0:00:15]} Qe7 {[%emt 0:01:12]} 16. Bxg7+ {[%emt 0:18:30]} Kxg7 {[%emt 0:00:41]} 17. Rh5 {[%emt 0:02:30]} Qf6 {[%emt 0:19:19]} 18. Rh2 {[%emt 0:04:29]} Qd6 {[%emt 0:11:16]} 19. Rh3 {[%emt 0:00:53]} Rf6 {[%emt 0:02:15]} 20. Nf5+ {[%emt 0:00:31]} Bxf5 {[%emt 0:00:16]} 21. gxf5 {[%emt 0:00:05]} Rxf5 {[%emt 0:01:17]} 22. Bg4 {[%emt 0:00:11]} Rf6 {[%emt 0:01:26]} 23. Ke2 {[%emt 0:00:14]} N8d7 {[%emt 0:04:11]} 24. Qh1 {[%emt 0:00:48]} Rh6 {[%emt 0:03:53]} 25. Rg1 {[%emt 0:02:07]} Rxh3 {[%emt 0:02:32]} 26. Qxh3 {[%emt 0:00:06]} h6 {[%emt 0:02:12]} 27. Rh1 {[%emt 0:02:56]} Rf8 {[%emt 0:00:44]} 28. Nd1 {[%emt 0:03:47]} Rf6 {[%emt 0:01:06]} 29. c3 {[%emt 0:01:17]} Nf8 {[%emt 0:00:35]} 30. Qh5 {[%emt 0:03:31]} Qe7 {[%emt 0:00:56]} 31. Qh3 {[%emt 0:02:29]} Nc4 {[%emt 0:00:36]} 32. f3 {[%emt 0:01:58]} exf3+ {[%emt 0:03:03]} 33. Bxf3 {[%emt 0:00:05]} Qe6 {[%emt 0:00:35]} 34. Bg4 {[%emt 0:03:11]} Qe4 {[%emt 0:00:17]} 35. Rh2 {[%emt 0:00:20]} Ne6 {[%emt 0:03:15]} 36. Bxe6 {[%emt 0:04:18]} Qxe6 {[%emt 0:00:13]} 37. Qg3 {[%emt 0:00:34]} Qf5 {[%emt 0:00:37]} 38. Qg1 {[%emt 0:03:53]} Qf3+ {[%emt 0:02:41]} 39. Ke1 {[%emt 0:00:14]} Qe4 {[%emt 0:00:32]} 40. b3 {[%emt 0:01:27]} Nd6 {[%emt 0:01:00]} 41. Kd2 {[%emt 0:30:19]} Qb1 {[%emt 0:33:42]} 42. Ke1 {[%emt 0:01:21]} Ne4 {[%emt 0:00:00]} 43. Rb2 {[%emt 0:00:00]} Qc1 {[%emt 0:00:00]} 44. c4 {[%emt 0:00:00]} Rf3 {[%emt 0:00:00]} 45. cxd5 {[%emt 0:00:00]} cxd5 {[%emt 0:00:00]} 46. Ke2 {[%emt 0:00:00]} Rf2+ {[%emt 0:00:00]} 0-1

[Event "SWE-ch Masters 2019"]
[Site "Eskilstuna"]
[Date "2019.07.12"]
[Round "7.9"]
[White "Hellstrom, Magnus"]
[Black "Sivhed, Johan"]
[Result "1-0"]
[ECO "C91"]
[WhiteElo "2061"]
[BlackElo "2023"]
[Annotator "NA"]
[PlyCount "153"]
[EventDate "2019.07.06"]
[EventType "swiss"]
[EventCountry "SWE"]
[SourceTitle "playchess.com"]
[Source "ChessBase"]
[SourceQuality "1"]
[TimeControl "40/5400+30:1800+30"]

1. e4 e5 2. Nf3 Nc6 3. Bb5 a6 4. Ba4 Nf6 5. O-O Be7 6. Re1 b5 7. Bb3 d6 8. c3 O-O 9. d4 Bg4 10. Be3 exd4 11. cxd4 Na5 12. Bc2 Nc4 13. Bc1 c5 14. b3 Nb6 15. Nbd2 cxd4 16. Bb2 d3 17. Bxd3 Nfd7 18. h3 Bh5 19. g4 Bg6 20. Nd4 Ne5 21. Bf1 Bg5 22. N2f3 Bf4 23. Bg2 Rc8 24. Nf5 Bxf5 25. exf5 Re8 26. Nd4 Qh4 27. Ne2 Bh6 28. f4 Nxg4 29. hxg4 Qxg4 30. Qd3 Nd7 31. Rac1 Nc5 32. Qc2 Rcd8 33. Kf1 Bxf4 34. Nxf4 Qxf4+ 35. Kg1 Qg3 36. Qc3 Qxc3 37. Bxc3 Nd3 38. Rxe8+ Rxe8 39. Rd1 Nf4 40. Kf1 Nxg2 41. Kxg2 Re2+ 42. Kf3 Rxa2 43. Rxd6 {[%emt 0:48:18]} h5 {[%emt 0:53:06]} 44. f6 {[%emt 0:00:30]} gxf6 {[%emt 0:00:30]} 45. Bxf6 {[%emt 0:00:30]} Ra3 {[%emt 0:00:30]} 46. Rd3 {[%emt 0:00:30]} Kh7 {[%emt 0:00:30]} 47. Kf4 {[%emt 0:00:30]} Kg6 {[%emt 0:00:30]} 48. Be7 {[%emt 0:00:30]} Ra2 {[%emt 0:00:30]} 49. Rg3+ {[%emt 0:00:30]} Kh6 {[%emt 0:00:30]} 50. Bg5+ {[%emt 0:00:30]} Kg6 {[%emt 0:00:30]} 51. Ke5 {[%emt 0:00:30]} Re2+ {[%emt 0:00:30]} 52. Be3+ {[%emt 0:00:30]} Kh7 {[%emt 0:00:30]} 53. Kf6 {[%emt 0:00:30]} Re1 {[%emt 0:00:30]} 54. Kxf7 {[%emt 0:00:30]} Rf1+ {[%emt 0:00:30]} 55. Ke6 {[%emt 0:00:30]} a5 {[%emt 0:00:30]} 56. Rg5 {[%emt 0:00:30]} Rf3 {[%emt 0:00:30]} 57. Rxh5+ {[%emt 0:00:30]} Kg6 {[%emt 0:00:30]} 58. Rg5+ {[%emt 0:00:30]} Kh7 {[%emt 0:00:30]} 59. Re5 {[%emt 0:00:30]} Kg6 {[%emt 0:00:30]} 60. Kd5 {[%emt 0:00:30]} a4 {[%emt 0:00:30]} 61. b4 {[%emt 0:00:30]} a3 {[%emt 0:00:30]} 62. Bd4 {[%emt 0:00:30]} Rd3 {[%emt 0:00:30]} 63. Re1 {[%emt 0:00:30]} a2 {[%emt 0:00:30]} 64. Ra1 {[%emt 0:00:30]} Ra3 {[%emt 0:00:30]} 65. Kc5 {[%emt 0:00:30]} Kf5 {[%emt 0:00:30]} 66. Kxb5 {[%emt 0:00:30]} Ke4 {[%emt 0:00:30]} 67. Kc4 {[%emt 0:00:30]} Ra8 {[%emt 0:00:30]} 68. Re1+ {[%emt 0:00:30]} Kf4 {[%emt 0:00:30]} 69. b5 {[%emt 0:00:30]} Ra4+ {[%emt 0:00:30]} 70. Kc5 {[%emt 0:00:30]} Ra3 {[%emt 0:00:30]} 71. Kb4 {[%emt 0:00:30]} Rd3 {[%emt 0:00:30]} 72. Kc4 {[%emt 0:00:30]} Ra3 {[%emt 0:00:30]} 73. b6 {[%emt 0:00:30]} Ra4+ {[%emt 0:00:30]} 74. Kc5 {[%emt 0:00:30]} Ra3 {[%emt 0:00:30]} 75. Kb4 {[%emt 0:00:30]} Rd3 {[%emt 0:00:30]} 76. Be5+ {[%emt 0:00:30]} Kf5 {[%emt 1:09:36]} 77. b7 {[%emt 0:00:30]} 1-0

[Event "SWE-ch Masters 2019"]
[Site "Eskilstuna"]
[Date "2019.07.12"]
[Round "7.10"]
[White "Adellian, Yashar"]
[Black "Cramling Bellon, Anna"]
[Result "1-0"]
[ECO "B22"]
[WhiteElo "1995"]
[BlackElo "2030"]
[Annotator "NA"]
[PlyCount "97"]
[EventDate "2019.07.06"]
[EventType "swiss"]
[EventCountry "SWE"]
[SourceTitle "playchess.com"]
[Source "ChessBase"]
[SourceQuality "1"]
[TimeControl "40/5400+30:1800+30"]

1. e4 {[%emt 0:00:00]} c5 {[%emt 0:01:06]} 2. c3 {[%emt 0:00:03]} Nf6 {[%emt 0:00:08]} 3. e5 {[%emt 0:00:33]} Nd5 {[%emt 0:00:10]} 4. d4 {[%emt 0:00:29]} cxd4 {[%emt 0:00:09]} 5. cxd4 {[%emt 0:00:31]} e6 {[%emt 0:02:02]} 6. Nc3 {[%emt 0:00:12]} Nxc3 {[%emt 0:00:13]} 7. bxc3 {[%emt 0:00:05]} d6 {[%emt 0:00:05]} 8. f4 {[%emt 0:00:48]} Qc7 {[%emt 0:01:14]} 9. Bd2 {[%emt 0:00:29]} Nc6 {[%emt 0:03:08]} 10. Bd3 {[%emt 0:01:43]} Bd7 {[%emt 0:04:41]} 11. Nf3 {[%emt 0:03:05]} Be7 {[%emt 0:00:23]} 12. O-O {[%emt 0:01:23]} O-O {[%emt 0:07:10]} 13. Qe2 {[%emt 0:03:20]} f6 {[%emt 0:19:54]} 14. Rae1 {[%emt 0:10:00]} f5 {[%emt 0:33:41]} 15. exd6 {[%emt 0:11:58]} Bxd6 {[%emt 0:06:55]} 16. Ng5 {[%emt 0:13:25]} Rae8 {[%emt 0:00:02]} 17. Bc4 {[%emt 0:00:09]} Nd8 {[%emt 0:01:46]} 18. Bb3 {[%emt 0:08:49]} h6 {[%emt 0:00:31]} 19. Nf3 {[%emt 0:00:23]} b5 {[%emt 0:05:12]} 20. Ne5 {[%emt 0:02:12]} Bxe5 {[%emt 0:00:28]} 21. fxe5 {[%emt 0:00:44]} a5 {[%emt 0:02:44]} 22. a3 {[%emt 0:00:23]} Nb7 {[%emt 0:04:19]} 23. Qh5 {[%emt 0:04:21]} Kh7 {[%emt 0:02:16]} 24. g4 {[%emt 0:00:41]} Re7 {[%emt 0:01:48]} 25. Bc2 {[%emt 0:04:26]} Be8 {[%emt 0:00:07]} 26. Qh3 {[%emt 0:00:45]} Bg6 {[%emt 0:00:58]} 27. gxf5 {[%emt 0:01:13]} exf5 {[%emt 0:00:02]} 28. Bxf5 {[%emt 0:00:31]} Bxf5 {[%emt 0:02:09]} 29. Rxf5 {[%emt 0:00:11]} Qc8 {[%emt 0:00:18]} 30. Rf3 {[%emt 0:03:41]} Qxh3 {[%emt 0:00:19]} 31. Rxh3 {[%emt 0:00:05]} Rfe8 {[%emt 0:00:44]} 32. Rb1 {[%emt 0:01:01]} Nd8 {[%emt 0:00:43]} 33. Rxb5 {[%emt 0:00:13]} Ra7 {[%emt 0:00:30]} 34. Rb6 {[%emt 0:02:02]} Nf7 {[%emt 0:00:25]} 35. Rg3 {[%emt 0:01:16]} Nd8 {[%emt 0:00:28]} 36. Rgg6 {[%emt 0:01:05]} Rae7 {[%emt 0:00:37]} 37. c4 {[%emt 0:11:17]} Rc7 {[%emt 0:00:24]} 38. c5 {[%emt 0:00:38]} Rd7 {[%emt 0:00:35]} 39. Rgd6 {[%emt 0:00:24]} Rde7 {[%emt 0:00:30]} 40. c6 {[%emt 0:04:25]} a4 {[%emt 0:00:32]} 41. Rb8 {[%emt 0:34:54]} Ne6 {[%emt 0:02:30]} 42. Rxe8 {[%emt 0:00:00]} Rxe8 {[%emt 0:00:01]} 43. Ba5 {[%emt 0:00:00]} Ng5 {[%emt 0:14:34]} 44. c7 {[%emt 0:00:00]} Nh3+ {[%emt 0:01:14]} 45. Kf1 {[%emt 0:00:00]} Rf8+ {[%emt 0:00:32]} 46. Ke1 {[%emt 0:00:00]} Nf4 {[%emt 0:02:05]} 47. Rd8 {[%emt 0:00:00]} Ng2+ {[%emt 0:00:46]} 48. Ke2 {[%emt 0:00:00]} Nf4+ {[%emt 0:00:09]} 49. Kf3 {[%emt 0:00:00]} 1-0